bitfinex/quotes_ETHUSD_20250129
["timestamp","ask_amount","ask_price","bid_price","bid_amount"]
[1738182487812,3.15925,3165.3,3165.2,3.20028811]
[1738182488113,0.8321,3166.1,3165.2,3.20028811]
[1738182488524,3.15874,3165.9,3165.2,3.20028811]
[1738182488709,3.15818,3166.4,3165.5,3.15897]
[1738182488904,3.15806,3166.5,3165.7,3.15877]
[1738182489220,0.315806,3166.5,3165.2,3.95278811]
[1738182489369,0.7687,3167.3,3165.2,3.95278811]
[1738182489370,3.15884,3165.8,3165.2,3.95278811]
[1738182489639,3.15925,3165.3,3165.2,3.20028811]
[1738182489852,0.62392381,3166.2,3165.2,3.20028811]
[1738182490059,3.15908,3165.5,3165.2,3.20028811]
[1738182490388,0.62392381,3166.2,3165.2,3.20028811]
[1738182490536,0.62392381,3166.2,3164.8,0.1950702]
[1738182490739,3.15862,3166.0,3164.8,0.1950702]
[1738182490961,3.15965,3164.9,3164.8,0.1950702]
[1738182491357,3.15965,3164.9,3164.8,2e-07]
[1738182493003,0.62954759,3165.4,3164.8,2e-07]
[1738182493160,3.15965,3164.9,3164.8,2e-07]
[1738182493585,3.16715,3164.9,3164.8,2e-07]
[1738182493768,4.099818,3164.9,3164.8,2e-07]
[1738182493971,4.906118,3164.9,3164.8,2e-07]
[1738182494165,4.913618,3164.9,3164.8,2e-07]
[1738182494409,4.906118,3164.9,3164.8,2e-07]
[1738182494586,9.10991056,3164.9,3164.8,2e-07]
[1738182495154,3.665,3164.8,3162.1,0.005]
[1738182495482,5.72086056,3164.9,3162.1,0.005]
[1738182495483,3.16235,3162.2,3162.1,0.005]
[1738182495653,6.16235,3162.2,3162.1,0.005]
[1738182496056,3.16145,3163.1,3162.1,0.005]
[1738182496375,3.1623,3162.3,3162.1,0.005]
[1738182496573,3.16925,3162.8,3162.1,0.005]
[1738182496750,3.53786,3163.6,3162.4,3.16215]
[1738182496751,3.16114,3163.5,3162.4,3.16215]
[1738182496949,0.9132,3164.2,3162.4,0.397585]
[1738182497149,0.9132,3164.2,3162.2,0.8137]
[1738182497150,3.16155,3163.1,3162.3,3.16224]
[1738182497401,3.16155,3163.1,3162.2,0.8137]
[1738182497402,3.97362,3164.2,3162.2,0.8137]
[1738182497563,3.16094,3163.7,3162.7,3.16175]
[1738182497901,0.8132,3164.2,3162.2,0.8137]
[1738182498068,1.25671616,3164.2,3162.7,3.16183]
[1738182498271,3.1608,3163.8,3162.6,0.49506222]
[1738182498471,0.8132,3164.2,3162.6,0.49506222]
[1738182498472,3.16045,3164.1,3162.6,0.49506222]
[1738182498673,3.1608,3163.8,3162.9,3.1616]
[1738182498972,3.16035,3164.3,3163.4,0.8072]
[1738182499216,3.16093,3163.7,3162.9,0.632345]
[1738182499519,0.6411923,3164.7,3162.5,0.8272]
[1738182499909,3.15954,3165.1,3164.2,3.16031]
[1738182500067,0.781,3165.3,3163.4,0.8306]
[1738182500268,0.62499802,3165.1,3163.4,0.8306]
[1738182500469,3.16065,3164.0,3163.4,0.8306]
[1738182500666,3.16016,3164.4,3163.4,0.8306]
[1738182500879,3.16016,3164.4,3163.5,3.16103]
[1738182501081,3.15983,3164.8,3163.5,3.16105]
[1738182501299,3.16004,3164.6,3163.4,0.8306]
[1738182501602,3.15975,3164.8,3163.8,3.1607]
[1738182501800,3.15986,3164.7,3163.9,3.16065]
[1738182501951,3.15975,3164.8,3163.9,3.16065]
[1738182502157,0.7866,3166.1,3163.9,0.316065]
[1738182502351,0.7866,3166.1,3163.1,0.0075]
[1738182502352,3.15816,3166.4,3165.4,3.15914]
[1738182502584,3.15855,3166.0,3164.8,3.15975]
[1738182502900,3.15855,3166.0,3164.7,0.825]
[1738182502901,3.15895,3165.7,3164.9,3.15956]
[1738182503057,0.64364763,3166.1,3164.7,0.825]
[1738182503261,3.1586,3166.0,3165.2,3.15926]
[1738182503449,3.15866,3165.9,3165.1,3.15945]
[1738182503650,3.15868,3165.9,3164.7,0.825]
[1738182503895,3.15805,3166.6,3165.7,3.1588]
[1738182504097,3.15793,3166.7,3165.9,3.15859]
[1738182504297,0.62227281,3167.1,3165.8,3.15873]
[1738182504503,0.62227281,3167.1,3165.1,3.15936]
[1738182504504,3.1578,3166.8,3166.1,3.15838]
[1738182504717,3.15768,3166.9,3166.1,3.15838]
[1738182504918,3.15693,3167.7,3166.9,3.15757]
[1738182505124,0.63136,3167.7,3166.1,3.15844]
[1738182505337,3.15743,3167.2,3166.1,3.15838]
[1738182505624,3.15736,3167.2,3166.4,3.15811]
[1738182505832,0.8322,3168.2,3166.8,3.15771]
[1738182505997,0.8322,3168.2,3167.0,3.15748]
[1738182506194,3.15648,3168.1,3167.4,3.15714]
[1738182506401,3.15656,3168.0,3167.1,3.15745]
[1738182506712,0.768,3169.5,3167.1,3.15746]
[1738182507024,3.15602,3168.6,3167.8,3.1567]
[1738182507228,3.15585,3168.8,3167.7,3.15685]
[1738182507528,0.63877821,3169.3,3167.9,3.1566]
[1738182507677,3.15625,3168.4,3167.1,0.794]
[1738182507881,3.15625,3168.4,3167.5,3.15702]
[1738182508125,3.92309,3169.5,3168.4,3.15615]
[1738182508351,3.15467,3169.9,3168.4,0.794]
[1738182508552,3.156,3168.6,3167.7,0.7802]
[1738182508751,3.15559,3169.0,3167.9,3.1566]
[1738182508962,3.78987244,3169.6,3167.7,0.7802]
[1738182508963,0.63486244,3169.6,3167.7,0.7802]
[1738182509264,3.15579,3168.8,3167.8,3.15673]
[1738182509463,3.15579,3168.8,3168.0,3.15656]
[1738182509668,0.63486244,3169.6,3167.7,0.7802]
[1738182509840,3.15543,3169.2,3168.4,3.15616]
[1738182510036,0.8217,3170.5,3168.9,0.7758]
[1738182510241,3.15464,3170.0,3169.1,3.15543]
[1738182510435,3.15516,3169.5,3168.9,0.7758]
[1738182510669,3.1551,3169.5,3168.9,0.7758]
[1738182510852,3.15557,3169.0,3168.3,0.795]
[1738182511053,3.15591,3168.7,3168.3,0.795]
[1738182511263,3.1553,3169.3,3167.6,0.795]
[1738182511569,3.15489,3169.7,3168.9,3.1556]
[1738182511724,3.1553,3169.3,3168.2,3.15628]
[1738182511923,3.1553,3169.3,3168.0,0.8003]
[1738182512123,3.0,3170.2,3168.0,0.8003]
[1738182512362,3.15523,3169.4,3168.2,3.1563]
[1738182512565,3.15523,3169.4,3168.1,3.15646]
[1738182512772,0.62639424,3170.3,3168.0,0.8003]
[1738182512974,3.15512,3169.5,3168.1,3.15646]
[1738182513129,3.15484,3169.8,3168.4,6.31232]
[1738182513130,3.15483,3169.8,3168.4,6.31232]
[1738182513328,3.15483,3169.8,3168.5,3.15606]
[1738182513561,3.15483,3169.8,3168.4,3.15616]
[1738182513562,3.15483,3169.8,3169.0,3.15548]
[1738182513763,3.15467,3169.9,3169.1,3.15542]
[1738182513920,0.62639424,3170.3,3168.9,0.7945]
[1738182514126,3.15462,3170.0,3169.2,3.15532]
[1738182514326,3.15471,3169.9,3169.1,3.15546]
[1738182514598,3.15471,3169.9,3169.2,3.15534]
[1738182514943,3.15507,3169.5,3168.9,0.7945]
[1738182515140,0.62064344,3170.4,3168.9,3.95007]
[1738182515141,3.15489,3169.7,3168.9,3.95007]
[1738182515358,0.7694,3171.2,3168.9,0.7945]
[1738182515657,3.1536,3171.0,3170.3,3.15427]
[1738182515878,3.15371,3170.9,3170.2,0.7837]
[1738182516060,3.15371,3170.9,3169.7,3.15486]
[1738182516061,3.15406,3170.6,3169.7,3.15486]
[1738182516260,0.630729,3170.9,3169.6,0.7787]
[1738182516496,0.61677402,3171.4,3169.6,0.7787]
[1738182516497,3.15434,3170.3,3169.6,0.7787]
[1738182516791,3.15434,3170.3,3169.6,3.93362]
[1738182516974,3.76997402,3171.4,3169.6,0.7787]
[1738182517144,0.61677402,3171.4,3169.7,3.15487]
[1738182517344,0.61677402,3171.4,3169.6,0.7787]
[1738182517549,3.15431,3170.3,3169.6,3.93359]
[1738182518092,3.15328,3171.3,3169.6,0.7787]
[1738182518093,3.15441,3170.2,3169.6,0.7787]
[1738182518293,3.15441,3170.2,3169.6,3.93365]
[1738182518506,0.61677402,3171.4,3169.8,3.15477]
[1738182518794,0.61677402,3171.4,3169.6,3.93364]
[1738182518795,3.15368,3170.9,3169.6,0.7787]
[1738182518999,3.15376,3170.9,3169.6,0.7787]
[1738182519302,0.315376,3170.9,3169.7,3.1548]
[1738182519480,3.15418,3170.4,3169.6,0.7787]
[1738182519687,0.64348868,3171.5,3170.0,3.15449]
[1738182519890,3.15415,3170.5,3169.8,3.15474]
[1738182520062,6.15288,3171.7,3170.0,3.1545]
[1738182520254,3.15419,3170.4,3169.7,3.15485]
[1738182520450,3.15419,3170.4,3169.6,0.7787]
[1738182520451,0.625821,3170.4,3169.6,0.7787]
[1738182520785,0.7733,3170.6,3168.6,3.15591]
[1738182520952,3.15537,3169.2,3168.2,3.15633]
[1738182521146,3.15568,3168.9,3168.1,0.8161]
[1738182521391,3.15467,3170.0,3168.1,0.8161]
[1738182521392,3.15558,3169.0,3168.1,0.8161]
[1738182521700,3.15585,3168.8,3168.1,0.8161]
[1738182522005,3.15567,3168.9,3168.2,3.15635]
[1738182522180,3.15599,3168.6,3168.1,0.8161]
[1738182522383,3.15639,3168.2,3167.6,0.8109]
[1738182522703,3.15672,3167.9,3167.6,0.8109]
[1738182522849,3.15727,3167.3,3167.0,0.8109]
[1738182523049,3.15715,3167.5,3167.0,0.8109]
[1738182523299,3.15662,3168.0,3167.0,0.8109]
[1738182523300,3.79612127,3168.0,3167.0,0.8109]
[1738182523454,3.15773,3166.9,3166.4,1.13860246]
[1738182523774,3.15793,3166.7,3166.4,0.32970246]
[1738182524181,3.15806,3166.5,3166.4,0.32970246]
[1738182524600,3.789659,3166.5,3166.4,0.32970246]
[1738182524906,3.15876,3165.8,3165.1,3.98962]
[1738182525201,0.8119,3166.9,3164.8,0.7764]
[1738182525410,3.77450713,3166.7,3164.8,0.7764]
[1738182525553,0.7635,3167.6,3165.6,0.7869]
[1738182525752,3.15651,3168.1,3167.1,3.15746]
[1738182525953,3.25482,3169.8,3167.9,3.15658]
[1738182525954,3.91932,3168.8,3167.9,3.15658]
[1738182526149,0.7922,3170.1,3167.6,0.8136]
[1738182526409,0.64165141,3170.0,3169.1,3.15542]
[1738182526569,3.15457,3170.0,3169.1,3.15542]
[1738182526747,0.7922,3170.1,3168.8,3.15571]
[1738182526951,3.15399,3170.6,3169.2,3.15536]
[1738182527266,3.863988,3170.6,3169.8,3.15475]
[1738182527473,0.709998,3170.6,3169.8,3.15475]
[1738182527671,3.15429,3170.3,3169.5,3.15498]
[1738182528018,0.7973,3171.4,3170.0,3.15453]
[1738182528295,3.15328,3171.3,3169.5,3.15505]
[1738182528449,0.015,3171.1,3169.0,3.96914]
[1738182528651,3.15481,3169.8,3169.1,3.15542]
[1738182528896,3.15488,3169.7,3169.0,0.8136]
[1738182529106,3.15417,3170.4,3169.0,0.8136]
[1738182529394,3.15426,3170.4,3169.5,3.15502]
[1738182529607,3.15398,3170.6,3169.6,3.15489]
[1738182529797,3.15378,3170.8,3169.2,3.15528]
[1738182529999,3.15378,3170.8,3170.0,3.15449]
[1738182530152,3.15359,3171.0,3170.0,3.15449]
[1738182530501,3.1539,3170.7,3169.0,0.8136]
[1738182530688,3.1539,3170.7,3169.9,3.15458]
[1738182531106,3.15409,3170.5,3169.9,3.15458]
[1738182531303,3.15428,3170.3,3169.0,0.8136]
[1738182531495,3.15428,3170.3,3169.1,3.15547]
[1738182531689,3.15428,3170.3,3169.7,3.15486]
[1738182531890,3.57718206,3171.0,3169.4,3.15508]
[1738182532104,3.15376,3170.9,3169.4,3.15512]
[1738182532304,3.15422,3170.4,3169.1,0.396916]
[1738182532502,3.15445,3170.2,3169.5,3.15504]
[1738182532705,3.15445,3170.2,3169.1,3.15537]
[1738182532888,3.15439,3170.2,3169.2,3.15532]
[1738182533095,3.15459,3170.0,3169.3,3.15526]
[1738182533272,3.15328,3171.3,3169.0,0.8136]
[1738182533479,3.1545,3170.1,3169.3,3.15517]
[1738182533673,3.15434,3170.3,3169.5,3.15504]
[1738182533923,3.15441,3170.2,3169.4,3.15509]
[1738182534125,0.64676945,3170.8,3169.0,0.8136]
[1738182534286,3.15387,3170.7,3169.3,3.15526]
[1738182534667,3.15455,3170.1,3169.1,3.15547]
[1738182534824,3.15463,3170.0,3169.3,3.15526]
[1738182534978,3.15455,3170.1,3169.3,3.15526]
[1738182535180,3.15447,3170.2,3169.5,3.15505]
[1738182535498,3.15425,3170.4,3169.6,3.15494]
[1738182535684,3.15407,3170.5,3169.8,3.15472]
[1738182535878,0.64676945,3170.8,3169.0,0.8136]
[1738182536120,0.64676945,3170.8,3169.8,3.15467]
[1738182536121,3.15399,3170.6,3169.8,3.15467]
[1738182536315,0.64676945,3170.8,3169.6,3.15495]
[1738182536477,0.64676945,3170.8,3169.1,3.15547]
[1738182536679,3.15478,3169.8,3169.2,3.15537]
[1738182536926,3.1553,3169.3,3168.3,0.8232]
[1738182537113,3.15554,3169.1,3168.4,3.15614]
[1738182537312,3.470268,3169.8,3168.3,0.8232]
[1738182537493,0.3470268,3169.7,3168.3,0.8232]
[1738182537695,3.15539,3169.2,3168.4,3.15612]
[1738182537930,3.15539,3169.2,3168.3,3.15624]
[1738182537931,3.15563,3169.0,3168.3,3.15624]
[1738182538082,3.15547,3169.1,3168.4,3.15612]
[1738182538283,3.15547,3169.1,3168.5,3.15606]
[1738182538502,0.3470268,3169.7,3168.4,3.15614]
[1738182538741,3.15506,3169.6,3168.9,3.15566]
[1738182538920,3.15508,3169.5,3168.7,3.15583]
[1738182539102,3.15508,3169.5,3168.5,3.15603]
[1738182539304,0.0075,3169.7,3167.8,0.8169]
[1738182539512,3.15567,3168.9,3168.0,3.15649]
[1738182539737,3.1559,3168.7,3167.9,3.15666]
[1738182540155,3.1559,3168.7,3167.8,0.8169]
[1738182540156,3.15572,3168.9,3168.0,3.15653]
[1738182540351,0.396992,3168.9,3167.3,3.90744]
[1738182540654,3.15656,3168.0,3166.8,0.7502]
[1738182540958,0.8014,3167.9,3166.2,0.766]
[1738182541123,3.15749,3167.1,3166.4,3.15815]
[1738182541320,3.15764,3167.0,3166.3,3.15818]
[1738182541518,3.15764,3167.0,3165.8,3.15873]
[1738182541519,0.6315,3167.0,3165.8,3.15873]
[1738182541721,3.15845,3166.1,3165.2,3.15934]
[1738182542012,3.15845,3166.1,3165.2,3.15926]
[1738182542324,0.63295614,3166.8,3165.2,3.15934]
[1738182542555,3.97487,3167.8,3166.3,3.15826]
[1738182542866,0.8181,3167.8,3166.2,0.7843]
[1738182543010,3.15636,3168.2,3167.2,3.15729]
[1738182543209,0.8181,3168.4,3167.6,3.15688]
[1738182543447,0.8181,3168.4,3167.1,35.0]
[1738182543957,3.15696,3167.6,3166.9,3.15762]
[1738182544125,3.15696,3167.6,3166.2,3.9426]
[1738182544126,3.15674,3167.9,3166.4,3.15816]
[1738182544455,3.15703,3167.6,3166.8,3.15772]
[1738182544672,3.15674,3167.9,3167.1,3.15745]
[1738182545066,3.15674,3167.9,3166.9,3.15759]
[1738182545067,3.15693,3167.7,3166.9,3.15759]
[1738182545368,3.15729,3167.3,3166.2,0.7843]
[1738182545660,0.62512439,3168.3,3167.4,3.15709]
[1738182545809,3.15643,3168.2,3167.5,3.15706]
[1738182546013,0.8181,3168.4,3167.5,3.15706]
[1738182546229,0.8181,3168.4,3166.7,3.15779]
[1738182546561,1.45337863,3167.6,3165.5,0.7702]
[1738182546706,1.45337863,3167.6,3165.5,3.92922]
[1738182546707,3.15834,3166.3,3165.5,3.92922]
[1738182546906,3.15843,3166.2,3165.5,3.92925]
[1738182547157,3.15726,3167.3,3165.9,3.15857]
[1738182547367,3.15772,3166.9,3166.1,3.15837]
[1738182547523,0.8141,3167.6,3165.6,3.15895]
[1738182547524,3.15802,3166.6,3165.6,3.15895]
[1738182547858,6.31606,3166.6,3165.8,3.1587]
[1738182548043,3.15816,3166.4,3165.5,0.7702]
[1738182548363,3.15829,3166.3,3165.6,3.15895]
[1738182548511,3.15799,3166.6,3165.5,0.7702]
[1738182548714,0.64124432,3167.1,3165.6,6.3179]
[1738182548715,3.15755,3167.1,3165.6,6.3179]
[1738182548923,0.6263346,3167.3,3165.7,0.70881]
[1738182549162,3.15796,3166.6,3165.9,3.15863]
[1738182549464,3.1585,3166.1,3165.5,0.7702]
[1738182549818,3.15894,3165.7,3164.9,3.93063]
[1738182549978,0.0075,3166.4,3164.7,0.0256639]
[1738182550307,3.15945,3165.2,3164.7,0.0256639]
[1738182550492,3.15826,3166.3,3164.9,3.15964]
[1738182550692,0.7502,3166.5,3164.9,3.15965]
[1738182550693,3.15858,3166.0,3164.9,3.15965]
[1738182551019,3.15905,3165.5,3164.9,3.15965]
[1738182551160,3.15886,3165.7,3164.9,3.15965]
[1738182551481,3.15831,3166.3,3164.7,0.0256639]
[1738182551673,1.39536128,3166.5,3164.7,0.0256639]
[1738182551674,0.7502,3166.5,3165.9,3.15864]
[1738182551918,3.15729,3167.3,3166.5,3.158]
[1738182552067,0.7993,3167.8,3165.6,9.47685]
[1738182552420,3.15735,3167.3,3166.6,3.15789]
[1738182552568,3.15701,3167.6,3167.0,3.15749]
[1738182552769,3.31689804,3169.1,3166.6,0.8267]
[1738182553080,3.31689804,3169.1,3168.2,3.15636]
[1738182553081,3.15574,3168.9,3168.2,3.15636]
[1738182553295,0.753,3169.0,3168.3,3.15626]
[1738182553525,0.753,3169.0,3167.5,4.06224219]
[1738182553701,0.753,3169.0,3167.6,0.40622422]
[1738182554025,3.15579,3168.8,3168.1,3.15643]
[1738182554225,0.7757,3169.5,3167.9,3.1566]
[1738182554550,3.15588,3168.7,3168.0,3.15654]
[1738182554832,3.15655,3168.1,3167.4,3.15715]
[1738182555133,3.15673,3167.9,3167.3,0.7984]
[1738182555333,3.15677,3167.8,3167.3,0.7984]
[1738182555516,0.8254,3168.1,3166.8,3.15774]
[1738182555719,0.8254,3168.1,3166.6,3.96542]
[1738182556037,3.1571,3167.5,3166.8,3.15773]
[1738182556331,3.1574,3167.2,3166.6,0.8075]
[1738182556540,3.15703,3167.6,3166.8,3.15769]
[1738182556841,3.15703,3167.6,3166.2,6.31672]
[1738182556842,3.15634,3168.3,3166.5,7.22030219]
[1738182556982,3.15606,3168.5,3167.2,0.7666]
[1738182557186,0.2,3170.4,3167.2,0.7666]
[1738182557187,3.15563,3169.0,3168.2,3.15628]
[1738182557402,3.15587,3168.7,3168.0,3.15649]
[1738182557619,3.15631,3168.3,3167.7,3.15682]
[1738182557844,3.15656,3168.1,3167.3,3.15725]
[1738182558142,3.15618,3168.4,3167.2,0.7666]
[1738182558347,3.15634,3168.3,3167.6,3.15695]
[1738182558487,3.15629,3168.3,3167.6,3.15695]
[1738182558689,3.15629,3168.3,3167.4,3.15713]
[1738182559002,3.16267,3169.4,3167.4,3.15713]
[1738182559003,3.0,3169.8,3167.9,3.15665]
[1738182559217,3.15597,3168.6,3167.9,3.15663]
[1738182559436,3.15597,3168.6,3167.2,0.7666]
[1738182559600,3.15655,3168.1,3167.3,3.15726]
[1738182559810,3.15659,3168.0,3167.3,3.15726]
[1738182559984,3.15626,3168.4,3167.2,0.7666]
[1738182560220,3.15668,3167.9,3167.2,0.7666]
[1738182560422,3.15706,3167.5,3166.8,3.15768]
[1738182560748,0.315626,3168.4,3166.8,3.15768]
[1738182560749,3.15687,3167.7,3167.0,3.15753]
[1738182560888,3.15687,3167.7,3167.1,3.15742]
[1738182561097,3.15732,3167.3,3166.7,0.7919]
[1738182561441,0.62209055,3168.0,3166.3,3.15821]
[1738182561661,3.15764,3167.0,3166.3,3.15824]
[1738182561995,0.62209055,3168.0,3166.3,0.393704]
[1738182562190,3.15706,3167.5,3166.9,3.15765]
[1738182562610,3.15693,3167.7,3166.9,3.15759]
[1738182562806,3.15705,3167.6,3166.8,3.15771]
[1738182563013,3.15723,3167.4,3166.8,3.15771]
[1738182563544,3.15738,3167.2,3166.1,0.7788]
[1738182563749,3.15757,3167.0,3166.3,3.15819]
[1738182564045,0.63142,3167.4,3166.7,3.15779]
[1738182564343,3.15791,3166.7,3166.1,0.7788]
[1738182564557,3.15791,3166.7,3165.7,3.15876]
[1738182564558,0.378857,3167.3,3165.6,0.7823]
[1738182564842,0.758,3167.8,3166.8,3.15775]
[1738182565142,3.91433,3168.3,3166.7,3.15786]
[1738182565342,0.7715,3169.5,3166.6,3.0]
[1738182565499,0.7715,3169.5,3166.9,3.15766]
[1738182565500,3.15597,3168.6,3166.9,3.15766]
[1738182565699,3.15547,3169.1,3167.5,3.15701]
[1738182565899,3.1561,3168.5,3167.8,3.15671]
[1738182566142,0.315547,3169.0,3167.6,3.15696]
[1738182566341,0.7715,3169.5,3167.5,0.8191]
[1738182566495,3.15551,3169.1,3168.5,3.15606]
[1738182566850,0.315551,3169.1,3168.2,3.15635]
[1738182567002,0.315551,3169.1,3167.9,3.15657]
[1738182567003,3.15583,3168.8,3168.0,3.1565]
[1738182567343,3.15594,3168.7,3168.0,3.1565]
[1738182567644,3.15669,3167.9,3167.2,3.15727]
[1738182567939,0.8325,3168.4,3167.0,3.15747]
[1738182568095,3.1565,3168.1,3167.4,3.15709]
[1738182568297,3.98869,3168.4,3167.7,3.15679]
[1738182568610,0.8325,3168.4,3167.6,3.15689]
[1738182568826,3.15637,3168.2,3167.4,6.31424]
[1738182568999,3.15671,3167.9,3167.3,3.15725]
[1738182569344,0.8325,3168.4,3166.7,3.15781]
[1738182569345,3.98869,3168.4,3166.7,3.15779]
[1738182569549,3.15722,3167.4,3166.7,3.15779]
[1738182569710,3.15703,3167.6,3166.9,3.15764]
[1738182569910,0.63975488,3168.1,3167.1,3.15742]
[1738182570120,3.15696,3167.6,3166.9,3.15759]
[1738182570451,3.15737,3167.2,3166.0,0.8315]
[1738182570645,3.15765,3167.0,3166.3,3.15818]
[1738182570795,3.158,3166.6,3165.9,3.15862]
[1738182570995,3.15819,3166.4,3165.6,3.15886]
[1738182571193,3.15819,3166.4,3164.8,0.30256639]
[1738182571194,3.15866,3165.9,3164.9,0.7921]
[1738182571439,3.15866,3165.9,3165.1,3.15936]
[1738182571738,3.97057,3166.3,3165.3,3.15918]
[1738182571950,3.97057,3166.3,3164.9,0.7921]
[1738182571951,3.15836,3166.2,3165.5,3.15899]
[1738182572104,3.15836,3166.2,3165.6,3.1589]
[1738182572302,3.15836,3166.2,3165.5,3.15899]
[1738182572501,3.15867,3165.9,3165.2,3.1593]
[1738182572729,0.8123,3166.3,3164.6,3.15988]
[1738182572730,3.15848,3166.1,3165.5,3.15899]
[1738182572929,0.8123,3166.3,3165.1,3.15945]
[1738182573251,0.8123,3166.3,3164.6,3.15988]
[1738182573252,0.8123,3166.3,3165.8,3.15869]
[1738182573602,0.0075,3167.3,3164.7,0.65600597]
[1738182573603,3.91381,3166.9,3165.9,3.15856]
[1738182573799,3.15827,3166.3,3165.6,3.15888]
[1738182574042,3.15827,3166.3,3164.7,0.65600597]
[1738182574043,3.15862,3166.0,3165.1,3.15942]
[1738182574245,3.15862,3166.0,3164.7,3.1854639]
[1738182574246,0.7856,3165.8,3164.7,0.0256639]
[1738182574430,3.15975,3164.8,3164.7,0.0256639]
[1738182575001,3.95285,3164.8,3164.7,0.0256639]
[1738182575247,4.656598,3164.8,3164.7,0.0256639]
[1738182575455,8.221598,3164.8,3164.7,3.9e-06]
[1738182575602,0.3769,3163.5,3162.1,0.759]
[1738182575802,3.16115,3163.4,3162.2,3.16235]
[1738182576043,3.16115,3163.4,3162.1,0.759]
[1738182576044,3.538,3163.5,3162.1,0.759]
[1738182576246,3.538,3163.5,3162.7,3.16176]
[1738182576247,0.3769,3163.5,3162.7,3.16176]
[1738182576429,3.16116,3163.4,3162.6,3.16187]
[1738182576635,3.16207,3162.5,3162.1,0.005]
[1738182576919,3.16235,3162.2,3162.1,0.005]
[1738182577144,0.7601,3162.4,3162.1,0.005]
[1738182577462,1.38482349,3163.5,3162.5,3.16205]
[1738182577666,1.38482349,3163.5,3162.1,0.005]
[1738182577667,0.7601,3163.5,3162.9,3.16157]
[1738182577823,0.64488402,3163.9,3162.9,0.632339]
[1738182578018,3.16036,3164.2,3162.8,3.16168]
[1738182578259,3.16085,3163.8,3162.9,3.16164]
[1738182578418,3.16057,3164.0,3163.2,3.16134]
[1738182578618,3.16048,3164.1,3163.3,3.16117]
[1738182578856,3.16048,3164.1,3163.4,3.16113]
[1738182579060,3.16048,3164.1,3163.1,3.16135]
[1738182579264,0.316048,3164.0,3162.4,0.785]
[1738182579466,3.16173,3162.9,3162.1,3.16742]
[1738182579670,3.16145,3163.2,3162.1,0.005]
[1738182579825,0.8007,3163.9,3162.8,3.16171]
[1738182580022,0.8007,3163.9,3163.6,3.16095]
[1738182580254,3.95914,3164.6,3163.9,3.16065]
[1738182580566,3.15885,3165.8,3163.3,0.8245]
[1738182580567,0.61834038,3165.2,3163.5,4.06224219]
[1738182580765,0.7991,3166.2,3164.5,3.16]
[1738182580916,3.15914,3165.5,3164.6,3.15994]
[1738182581262,3.475054,3165.5,3164.6,3.15995]
[1738182581463,3.15954,3165.1,3164.2,3.16028]
[1738182581666,0.315914,3165.5,3164.3,3.16016]
[1738182581869,0.315914,3165.5,3163.6,3.16087]
[1738182581870,3.1591,3165.5,3163.6,3.16095]
[1738182582033,3.15918,3165.4,3164.5,3.15996]
[1738182582235,3.15918,3165.4,3164.3,3.16021]
[1738182582236,0.8066,3166.2,3163.5,4.06224219]
[1738182582452,0.8066,3166.2,3164.3,3.16017]
[1738182582453,3.15937,3165.2,3164.3,3.16017]
[1738182582661,3.93256,3165.1,3164.1,3.16041]
[1738182582969,3.93256,3165.1,3164.4,3.16015]
[1738182583325,0.7731,3165.1,3163.2,3.63448389]
[1738182583535,0.7731,3165.1,3164.4,3.16013]
[1738182583741,3.15927,3165.3,3164.4,3.16013]
[1738182584074,0.37935009,3165.3,3163.3,0.8245]
[1738182584276,3.15983,3164.8,3163.9,3.16057]
[1738182584486,3.16029,3164.3,3163.5,3.16096]
[1738182584641,3.15925,3165.3,3163.3,0.8245]
[1738182584845,3.15992,3164.7,3163.8,3.16067]
[1738182585060,3.15992,3164.7,3162.9,0.62259245]
[1738182585061,0.1,3164.2,3162.4,0.16044618]
[1738182585338,0.1,3164.2,3162.1,0.005]
[1738182585339,0.7696,3164.0,3162.1,0.005]
[1738182585561,3.16116,3163.4,3162.3,3.16218]
[1738182585737,3.16122,3163.4,3162.3,3.16218]
[1738182585967,3.16143,3163.2,3162.1,3.16744]
[1738182586172,3.16792,3164.2,3162.6,3.16189]
[1738182586368,0.63891155,3163.9,3162.7,3.16184]
[1738182586581,3.16108,3163.5,3162.7,3.16184]
[1738182586757,3.16067,3163.9,3163.1,3.16137]
[1738182586960,3.16067,3163.9,3162.4,0.7731]
[1738182586961,0.709074,3163.9,3162.4,0.7731]
[1738182587144,3.16047,3164.1,3162.4,0.7731]
[1738182587352,0.8229,3164.5,3163.0,3.16149]
[1738182587555,0.8229,3164.5,3163.7,3.16084]
[1738182587789,3.16026,3164.3,3163.5,3.161]
[1738182587991,0.8229,3164.5,3162.5,3.16202]
[1738182587992,3.16015,3164.4,3162.5,3.16202]
[1738182588157,3.16015,3164.4,3163.0,3.16151]
[1738182588483,3.16087,3163.7,3163.0,3.16151]
[1738182588904,3.16044,3164.2,3163.3,3.16116]
[1738182589051,3.16044,3164.2,3162.4,3.7731]
[1738182589052,3.16072,3163.9,3163.0,3.16146]
[1738182589248,3.16092,3163.7,3162.7,3.16176]
[1738182589453,3.16092,3163.7,3162.4,0.7731]
[1738182589653,3.16111,3163.5,3162.4,0.7731]
[1738182589957,0.7785,3164.1,3162.1,0.005]
[1738182590282,3.16218,3162.4,3162.1,0.005]
[1738182590478,3.16235,3162.2,3162.1,0.005]
[1738182590687,3.16176,3162.8,3162.1,3.16744]
[1738182591000,3.16165,3162.9,3162.1,0.005]